bitfinex/quotes_SOLUSD_20211001
["timestamp","ask_amount","ask_price","bid_price","bid_amount"]
[1633077779673,2.01096531,143.87,143.81,86.18167071]
[1633077780470,2.01067228,143.88,143.81,86.18167071]
[1633077781072,2.01067228,143.88,143.81,60.0]
[1633077781272,2.01067228,143.88,143.71,117.42252961]
[1633077781472,2.01076445,143.87,143.78,30.0]
[1633077781874,2.01076445,143.87,143.78,60.0]
[1633077782073,2.01076445,143.87,143.79,23.0265073]
[1633077782874,2.01076445,143.87,143.8,30.0]
[1633077783074,2.01076445,143.87,143.8,60.0]
[1633077783273,2.01072075,143.88,143.8,30.0]
[1633077783474,2.01072075,143.88,143.79,23.0265073]
[1633077783674,2.01072075,143.88,143.81,60.0]
[1633077784277,2.01070194,143.87,143.81,60.0]
[1633077784475,2.01070194,143.87,143.79,23.0265073]
[1633077785375,2.01070194,143.87,143.8,60.0]
[1633077785574,39.03140388,143.9,143.8,60.0]
[1633077785575,2.01070336,143.88,143.8,60.0]
[1633077785775,2.01070336,143.88,143.79,23.0265073]
[1633077786174,2.0106258,143.87,143.79,23.0265073]
[1633077786373,2.0106258,143.87,143.8,30.0]
[1633077786573,2.01063746,143.88,143.79,23.0265073]
[1633077786775,2.01063746,143.88,143.81,60.0]
[1633077787575,2.01063746,143.88,143.82,28.88186343]
[1633077788578,2.01046959,143.89,143.83,30.0]
[1633077788778,2.01046959,143.89,143.83,60.0]
[1633077789584,2.01046959,143.89,143.83,30.0]
[1633077789778,2.01046959,143.89,143.73,79.421]
[1633077789979,2.0105056,143.88,143.81,30.0]
[1633077790381,2.0105056,143.88,143.81,60.0]
[1633077790780,2.01067391,143.87,143.81,60.0]
[1633077791381,2.01059191,143.88,143.81,84.78720049]
[1633077792384,2.01077343,143.87,143.81,84.78720049]
[1633077793984,2.01080944,143.88,143.81,84.78720049]
[1633077794787,2.01091948,143.87,143.81,84.78720049]
[1633077795385,2.01091198,143.88,143.81,84.78720049]
[1633077795587,2.01123503,143.86,143.81,84.78720049]
[1633077796190,2.01123503,143.86,143.81,24.78720049]
[1633077796588,2.01118627,143.87,143.81,24.78720049]
[1633077796788,2.01123499,143.86,143.74,72.8037]
[1633077796988,2.01123499,143.86,143.8,30.0]
[1633077797188,2.01123499,143.86,143.78,30.0]
[1633077797588,2.01154607,143.85,143.78,60.0]
[1633077797788,2.01145519,143.86,143.79,22.72896883]
[1633077797988,2.01145519,143.86,143.8,60.0]
[1633077798388,2.01145519,143.86,143.79,22.72896883]
[1633077798790,2.01145519,143.86,143.81,60.0]
[1633077799692,2.01145519,143.86,143.79,22.72896883]
[1633077799894,2.01145519,143.86,143.81,30.0]
[1633077800093,2.01145519,143.86,143.81,60.0]
[1633077800492,2.01206889,143.85,143.81,60.0]
[1633077802197,2.01206889,143.85,143.82,26.97747257]
[1633077802401,4.02443907,143.88,143.84,60.0]
[1633077803297,4.02462096,143.89,143.84,60.0]
[1633077803698,4.02462096,143.89,143.84,30.0]
[1633077803896,4.02462096,143.89,143.85,60.0]
[1633077807501,4.02506118,143.88,143.81,26.59510137]
[1633077807699,4.02506118,143.88,143.81,56.59510137]
[1633077807900,4.02506118,143.88,143.81,86.59510137]
[1633077808499,4.02513674,143.87,143.81,86.59510137]
[1633077809698,4.02513674,143.87,143.81,60.0]
[1633077811801,4.02513674,143.87,143.8,22.0070558]
[1633077812002,4.02513674,143.87,143.8,82.0070558]
[1633077812402,4.02513674,143.87,143.74,72.8037]
[1633077812606,4.02557797,143.86,143.8,60.0]
[1633077813402,0.04176,143.88,143.8,60.0]
[1633077813603,0.04176,143.89,143.78,81.33905283]
[1633077813802,6.08025906,143.89,143.78,81.33905283]
[1633077814003,0.04176,143.88,143.78,81.33905283]
[1633077814202,5.44954582,143.88,143.78,81.33905283]
[1633077815105,11.08497543,143.88,143.78,81.33905283]
[1633077815305,5.40773504,143.87,143.78,81.33905283]
[1633077815904,0.04176,143.88,143.78,81.33905283]
[1633077817506,2.01281334,143.83,143.78,81.33905283]
[1633077818306,2.01281334,143.83,143.78,60.0]
[1633077818507,2.01301471,143.81,143.78,60.0]
[1633077818909,2.01286023,143.82,143.78,60.0]
[1633077819507,2.01289925,143.81,143.78,60.0]
[1633077820311,2.01277948,143.82,143.78,60.0]
[1633077821610,2.0128826,143.81,143.78,60.0]
[1633077821808,2.0128826,143.81,143.76,26.35891069]
[1633077822211,2.0128344,143.82,143.76,26.35891069]
[1633077823709,2.01262664,143.83,143.76,26.35891069]
[1633077824711,2.01262664,143.83,143.78,60.0]
[1633077824912,2.01262664,143.83,143.79,22.91007221]
[1633077825315,2.01262664,143.83,143.8,30.0]
[1633077825512,2.01262664,143.83,143.8,60.0]
[1633077826314,2.01245694,143.84,143.8,60.0]
[1633077828515,2.01245694,143.84,143.79,22.91007221]
[1633077829620,2.01245694,143.84,143.78,60.0]
[1633077829820,15.52053655,143.84,143.78,60.0]
[1633077830022,2.01300812,143.8,143.78,60.0]
[1633077830426,0.04176,143.81,143.78,60.0]
[1633077830626,5.63542961,143.8,143.69,21.78376528]
[1633077830821,5.63542961,143.8,143.64,1.88394267]
[1633077830822,2.01343035,143.77,143.64,1.88394267]
[1633077831020,2.01343035,143.77,143.63,1.89179987]
[1633077831220,2.01351631,143.76,143.71,30.0]
[1633077831419,2.0547324,143.78,143.71,30.0]
[1633077832018,2.01299876,143.77,143.71,30.0]
[1633077832619,2.05440991,143.78,143.71,30.0]
[1633077833021,2.05440991,143.78,143.69,22.40721687]
[1633077833422,0.04176,143.78,143.69,22.40721687]
[1633077833620,0.04176,143.79,143.69,22.40721687]
[1633077834021,13.50807961,143.8,143.69,22.40721687]
[1633077834820,7.87265,143.8,143.69,22.40721687]
[1633077836626,7.87265,143.8,143.72,30.0]
[1633077837225,7.87265,143.8,143.72,60.0]
[1633077837426,7.87265,143.8,143.72,30.0]
[1633077837826,7.87265,143.8,143.69,52.40721687]
[1633077838029,7.87265,143.8,143.69,82.40721687]
[1633077839231,7.87265,143.8,143.69,88.04264648]
[1633077839431,7.87265,143.8,143.7,75.9997]
[1633077839831,7.87265,143.8,143.71,30.0]
[1633077840030,7.87265,143.8,143.72,53.03476774]
[1633077840837,7.87265,143.8,143.72,58.67019735]
[1633077841032,7.87265,143.8,143.72,88.67019735]
[1633077841232,7.87265,143.8,143.72,58.67019735]
[1633077842636,7.87265,143.8,143.77,30.0]
[1633077842835,7.87265,143.8,143.78,28.10521447]
[1633077843634,7.87265,143.8,143.78,58.10521447]
[1633077843835,7.87265,143.8,143.78,88.10521447]
[1633077844036,7.87265,143.8,143.78,28.10521447]
[1633077849442,0.04176,143.85,143.78,33.74064408]
[1633077849643,0.04176,143.86,143.78,33.74064408]
[1633077849842,0.04176,143.87,143.78,63.74064408]
[1633077850041,0.04176,143.87,143.78,93.74064408]
[1633077850642,0.04176,143.89,143.78,33.74064408]
[1633077850844,0.04176,143.89,143.8,30.0]
[1633077851045,0.04176,143.89,143.81,28.37973432]
[1633077851845,0.04176,143.89,143.82,73.5888]
[1633077853846,0.04176,143.9,143.82,73.5888]
[1633077855049,2.01015784,143.91,143.82,73.5888]
[1633077857252,2.01015784,143.91,143.83,30.0]
[1633077857457,2.01015784,143.91,143.84,26.47928355]
[1633077857651,2.05164511,143.92,143.84,26.47928355]
[1633077857852,2.00988884,143.91,143.84,26.47928355]
[1633077858253,2.05164429,143.92,143.84,26.47928355]
[1633077858457,0.04176,143.92,143.84,26.47928355]
[1633077858652,2.05099973,143.95,143.84,26.47928355]
[1633077860083,2.009284,143.94,143.86,30.0]
[1633077860280,2.009284,143.94,143.87,30.02655038]
[1633077860480,2.05090198,143.95,143.87,30.02655038]
[1633077860684,0.04176,143.95,143.87,30.02655038]
[1633077861679,0.04176,143.95,143.86,60.0]
[1633077861880,2.0508067,143.95,143.86,60.0]
[1633077862680,2.0508067,143.95,143.86,87.10230029]
[1633077864582,2.00948159,143.94,143.86,87.10230029]
[1633077867284,0.04176,143.95,143.86,57.10230029]
[1633077867484,2.00928276,143.96,143.87,30.0]
[1633077867883,2.00930862,143.97,143.88,30.0]
[1633077868086,2.00913098,143.98,143.9,30.0]
[1633077868284,66.26009973,144.01,143.89,28.22304625]
[1633077868285,2.00897818,143.99,143.89,28.22304625]
[1633077868491,2.00873902,144.0,143.89,28.22304625]
[1633077868684,2.00873902,144.0,143.92,21.9731264]
[1633077869683,2.0090376,143.99,143.92,21.9731264]
[1633077869884,2.00882387,144.0,143.92,21.9731264]
[1633077870884,2.00882387,144.0,143.92,98.4744264]
[1633077871283,2.00887107,143.99,143.92,98.4744264]
[1633077871485,2.00871482,144.0,143.92,98.4744264]
[1633077871889,2.00871482,144.0,143.92,21.9731264]
[1633077872085,2.00871482,144.0,143.92,96.7348264]
[1633077872686,7.68570319,144.01,143.92,96.7348264]
[1633077873085,2.00862893,144.0,143.92,96.7348264]
[1633077874686,2.00871369,143.99,143.92,96.7348264]
[1633077874885,2.00869379,144.0,143.92,96.7348264]
[1633077875488,2.00877517,143.99,143.92,96.7348264]
[1633077875886,2.00874605,144.0,143.92,96.7348264]
[1633077876086,2.00877096,143.99,143.92,96.7348264]
[1633077876489,2.00873205,144.0,143.92,96.7348264]
[1633077877688,2.05039923,144.01,143.92,96.7348264]
[1633077880294,2.05039923,144.01,143.93,30.0]
[1633077880494,2.05039923,144.01,143.93,60.0]
[1633077881694,2.00863923,144.01,143.93,60.0]
[1633077885596,2.00908148,144.0,143.92,96.7348264]
[1633077886598,2.00908148,144.0,143.93,60.0]
[1633077886799,2.00927658,143.99,143.93,60.0]
[1633077887797,2.0094023,144.0,143.93,60.0]
[1633077888399,2.0094023,144.0,143.92,96.7348264]
[1633077888600,2.0094023,144.0,143.93,30.0]
[1633077888800,2.0094023,144.0,143.94,30.0]
[1633077889001,2.0094023,144.0,143.95,27.53538128]
[1633077890601,2.00955995,143.99,143.95,27.53538128]
[1633077891202,2.00955458,144.0,143.95,27.53538128]
[1633077891604,2.00965882,143.99,143.95,27.53538128]
[1633077891804,2.0096353,144.0,143.95,27.53538128]
[1633077892004,2.00966729,143.99,143.95,27.53538128]
[1633077893005,2.00966729,143.99,143.92,74.7617]
[1633077893907,2.01011043,143.98,143.92,74.7617]
[1633077895708,2.01056869,143.97,143.92,74.7617]
[1633077896507,2.01077206,143.96,143.92,74.7617]
[1633077896709,2.01082683,143.95,143.92,74.7617]
[1633077896906,2.01065163,143.96,143.91,60.0]
[1633077897107,7.87265,143.97,143.91,60.0]
[1633077897508,9.88338812,143.97,143.91,60.0]
[1633077897715,9.88338812,143.97,143.91,59.5]
[1633077899310,9.88338812,143.97,143.92,24.84574403]
[1633077899511,7.87265,143.97,143.92,24.84574403]
[1633077899914,7.87265,143.97,143.94,59.5]
[1633077900317,2.01070667,143.96,143.94,30.0]
[1633077900513,2.01070667,143.96,143.83,20.70848199]
[1633077900712,7.87265,143.97,143.91,29.5]
[1633077901114,7.87265,143.97,143.92,29.34838122]
[1633077904715,7.87265,143.97,143.92,103.23978122]
[1633077905315,7.87265,143.97,143.92,29.34838122]
[1633077906618,7.87265,143.97,143.94,29.5]
[1633077906818,7.87265,143.97,143.95,30.31705532]
[1633077911122,7.87265,143.97,143.94,59.5]
[1633077913324,7.87265,143.97,143.94,29.5]
[1633077913526,7.91441,143.97,143.89,29.31968558]
[1633077913723,2.2828,143.96,143.91,30.0]
[1633077916129,2.2828,143.96,143.92,25.7338215]
[1633077916327,2.2828,143.96,143.91,30.0]
[1633077917329,2.2828,143.96,143.92,24.69134162]
[1633077933445,2.2828,143.96,143.91,30.0]
[1633077934347,2.2828,143.96,143.91,58.59396079]
[1633077936851,2.2828,143.96,143.91,30.0]
[1633077941155,2.2828,143.96,143.91,62.54068887]
[1633077941755,2.2828,143.96,143.91,56.90525926]
[1633077941958,2.2828,144.0,143.91,56.90525926]
[1633077942757,2.2828,144.0,143.92,5.63542961]
[1633077945155,4.29265983,144.03,143.92,5.63542961]
[1633077945357,4.29265983,144.03,143.91,56.90525926]
[1633077945558,2.01011989,144.01,143.91,30.25]
[1633077945759,0.04176,144.0,143.91,30.25]
[1633077947558,2.05192886,144.01,143.91,30.25]
[1633077947758,0.04176,144.0,143.91,30.25]
[1633077947958,0.04176,144.01,143.91,30.25]
[1633077948365,2.2828,144.0,143.91,30.25]
[1633077948561,0.04176,143.99,143.91,30.0]
[1633077949164,2.2828,144.0,143.91,30.0]
[1633077951168,2.2828,144.0,143.9,73.4348]
[1633077951363,2.2828,144.01,143.9,73.4348]
[1633077951562,2.2828,144.01,143.92,5.63542961]
[1633077957464,2.2828,144.01,143.9,79.07022961]
[1633077960172,2.2828,144.01,143.9,98.81814125]
[1633077960367,2.2828,144.02,143.91,1.84627149]
[1633077960766,2.2828,144.02,143.92,5.63542961]
[1633077963772,2.2828,144.02,143.92,25.38761186]
[1633077964169,2.2828,144.02,143.93,5.63542961]
[1633077964371,2.2828,144.02,143.94,30.10397772]
[1633077964969,2.2828,144.02,143.95,5.63542961]
[1633077965171,2.2828,144.02,143.95,81.12742961]
[1633077965575,2.2828,144.02,143.96,5.63542961]
[1633077965970,2.2828,144.08,143.96,17.90284224]
[1633077966371,2.2828,144.08,143.96,23.53827185]
[1633077966570,2.2828,144.08,143.97,1.80869264]
[1633077966771,2.2828,144.08,143.96,81.50367707]
[1633077966970,2.2828,144.08,143.98,24.38038296]
[1633077967170,2.2828,144.08,143.99,29.75808557]
[1633077967369,2.2828,144.08,143.99,54.13846853]
[1633077967570,2.2828,144.08,144.0,5.63542961]
[1633077968176,2.2828,144.08,144.0,80.38292961]
[1633077968576,2.2828,144.08,144.01,5.63542961]
[1633077968774,2.2828,144.11,144.01,5.63542961]
[1633077971980,2.2828,144.14,144.01,5.63542961]
[1633077977786,2.2828,144.14,144.01,75.65542961]
[1633077978195,2.2828,144.14,144.02,5.63542961]
[1633077979822,2.2828,144.14,144.0,80.38292961]
[1633077979990,7.91822961,144.14,144.0,5.63542961]
[1633077980391,2.2828,144.14,144.0,5.63542961]
[1633077980992,2.2828,144.14,144.0,24.38038296]
[1633077982993,2.2828,144.14,144.01,79.2218]
[1633077983394,2.2828,144.14,144.01,84.85722961]
[1633077983797,2.2828,144.14,144.01,5.63542961]
[1633077986098,7.91822961,144.14,144.0,18.74495335]
[1633077986500,0.04176,144.13,144.0,18.74495335]
[1633077987101,2.2828,144.12,144.0,18.74495335]
[1633077987305,2.32456,144.12,144.0,18.74495335]
[1633077987506,2.32456,144.12,144.0,92.15005335]
[1633077991824,2.32456,144.12,144.0,73.4051]
[1633077992025,7.95998961,144.12,144.0,73.4051]
[1633077992225,0.04176,144.11,144.0,73.4051]
[1633077993324,2.2828,144.1,144.0,73.4051]
[1633077993526,0.04176,144.09,144.0,73.4051]
[1633077993923,2.2828,144.1,144.0,73.4051]
[1633077996525,2.2828,144.1,144.0,79.04052961]
[1633077996926,2.2828,144.1,144.0,73.4051]
[1633077998628,2.93,144.09,144.0,73.4051]
[1633078000731,2.2828,144.08,144.01,5.63542961]
[1633078001531,2.2828,144.08,144.01,8.56542961]
[1633078001931,2.2828,144.08,144.02,5.63542961]
[1633078003533,2.2828,144.08,144.01,2.93]
[1633078003732,2.2828,144.12,144.01,2.93]
[1633078005537,2.2828,144.12,144.01,8.56542961]
[1633078006540,2.2828,144.12,144.01,26.2691039]
[1633078007037,2.2828,144.12,144.01,28.14752796]
[1633078010040,2.2828,144.12,144.01,55.94326634]
[1633078010240,2.2828,144.12,144.02,1.88077552]
[1633078010443,2.2828,144.12,144.04,27.6578958]
[1633078010641,2.2828,144.13,144.04,30.5878958]
[1633078010842,2.2828,144.13,144.04,48.29157009]
[1633078011041,2.2828,144.13,144.04,53.9269997]
[1633078014948,2.2828,144.14,144.04,53.9269997]
[1633078015848,2.2828,144.14,144.04,48.29157009]
[1633078016050,2.2828,144.14,144.04,30.5878958]
[1633078016848,5.25456,144.14,144.04,27.6578958]
[1633078026154,2.32456,144.14,144.04,30.5878958]
[1633078026354,5.25456,144.14,144.01,2.93]
[1633078026554,10.88998961,144.14,144.01,2.93]
[1633078026756,0.04176,144.13,144.01,2.93]
[1633078027154,2.93,144.12,144.02,27.95159176]
[1633078027354,0.04176,144.11,144.02,27.95159176]
[1633078027557,0.04176,144.11,144.0,73.4051]
[1633078028555,0.04176,144.11,144.0,102.88557796]
[1633078028556,2.2828,144.1,144.0,102.88557796]
[1633078028756,2.2828,144.1,144.01,26.75570487]
[1633078032461,2.93,144.09,144.01,26.75570487]
[1633078032859,2.2828,144.08,144.01,26.75570487]
[1633078033759,2.2828,144.08,144.0,73.4051]
[1633078034359,2.97176,144.07,144.0,73.4051]
[1633078034562,0.04176,144.06,144.0,102.01107389]
[1633078034759,0.04176,144.06,144.0,128.76677876]
[1633078034959,0.04176,144.07,144.0,128.76677876]
[1633078035161,0.04176,144.07,144.0,100.16080487]
[1633078037361,33.2828,144.06,144.0,100.16080487]
[1633078037561,2.32456,144.06,144.0,100.16080487]
[1633078040366,2.32456,144.06,143.94,40.57599843]
[1633078040367,7.87265,144.05,143.92,427.70098529]
[1633078040567,2.00784462,144.03,143.92,425.72947992]
[1633078040764,10.80265,144.02,143.86,2.00861501]
[1633078040968,0.04176,144.01,143.84,2.00884899]
[1633078041167,10.80265,144.0,143.83,27.03704405]
[1633078041365,0.04176,143.99,143.83,27.03704405]
[1633078041566,2.93,143.98,143.83,27.03704405]
[1633078041766,0.04176,143.97,143.83,27.03704405]
[1633078041967,2.93,143.96,143.83,27.03704405]
[1633078044065,2.2828,143.95,143.83,27.03704405]
[1633078044265,2.93,143.94,143.83,27.03704405]
[1633078045868,2.2828,143.95,143.84,2.93]
[1633078055687,2.2828,143.97,143.84,2.93]
[1633078056085,2.93,143.96,143.84,2.93]
[1633078057285,2.93,143.96,143.84,20.2945]
[1633078059088,2.2828,143.95,143.84,20.2945]
[1633078061294,2.2828,143.95,143.84,2.93]
[1633078062293,0.04176,143.94,143.84,2.93]
[1633078062893,2.2828,143.93,143.84,2.93]
[1633078063095,2.32456,143.93,143.84,2.93]
[1633078064095,2.32456,143.93,143.84,4.93794997]
[1633078064496,2.32456,143.93,143.85,2.00790139]
[1633078065499,2.32456,143.93,143.86,2.00205746]
[1633078065697,2.32456,143.93,143.85,1.99903805]
[1633078066496,2.2828,143.93,143.85,1.99903805]
[1633078066898,2.2828,143.95,143.85,1.99903805]
[1633078067899,2.2828,143.95,143.84,4.93867663]
[1633078069901,2.2828,143.95,143.85,2.01003717]
[1633078070501,2.93,143.94,143.85,2.01003717]
[1633078071103,2.93,143.94,143.86,2.00996634]
[1633078071303,2.2828,143.93,143.86,2.00996634]
[1633078073704,2.2828,143.93,143.87,2.00998128]
[1633078073905,2.2828,143.93,143.84,2.46754326]
[1633078073906,2.2828,143.93,143.89,2.00980023]
[1633078074310,5.2128,143.96,143.88,28.1184315]
[1633078074904,5.2128,143.96,143.89,2.00980974]
[1633078075503,5.2128,143.96,143.88,26.10861302]
[1633078075504,5.2128,143.96,143.88,28.11858302]
[1633078075703,5.2128,143.96,143.87,2.01017702]
[1633078075906,5.2128,143.96,143.86,2.01027731]
[1633078076104,5.2128,143.96,143.85,2.01031351]
[1633078076710,5.25456,143.96,143.85,2.01031351]
[1633078077908,5.25456,143.96,143.84,2.01039025]
[1633078078508,5.25456,143.96,143.85,30.24367633]
[1633078079105,5.25456,143.96,143.85,32.25380122]
[1633078079707,5.25456,143.96,143.85,30.24367633]
[1633078080709,5.25456,143.96,143.85,32.25377139]
[1633078085931,5.25456,143.96,143.85,30.24367633]
[1633078090232,5.25456,143.96,143.85,32.2537972]
[1633078090832,5.25456,143.96,143.85,30.24367633]
[1633078091032,5.25456,143.96,143.84,2.01018795]
[1633078091433,5.63542961,143.95,143.83,2.01040986]
[1633078091633,2.93,143.94,143.82,2.01051379]
[1633078091834,0.04176,143.93,143.81,2.01043883]
[1633078092034,2.93,143.92,143.81,31.45916216]
[1633078092437,2.93,143.92,143.83,2.01019065]
[1633078092633,2.93,143.92,143.81,29.44872333]
[1633078092634,2.93,143.92,143.82,2.01030719]
[1633078093036,2.93,143.92,143.81,31.45904665]
[1633078095136,2.2828,143.91,143.81,31.45904665]
[1633078095339,5.2128,143.91,143.81,31.45904665]
[1633078097745,5.2128,143.91,143.8,2.01039412]
[1633078099346,5.2128,143.91,143.79,2.01044476]
[1633078100147,0.04176,143.9,143.79,2.01044476]
[1633078100345,2.93,143.89,143.79,2.01044476]
[1633078100545,5.2128,143.89,143.79,2.01044476]
[1633078100746,5.2128,143.89,143.78,2.01030831]
[1633078101346,18.72087961,143.89,143.76,453.55014861]
[1633078101546,7.87265,143.88,143.74,2.01093893]
[1633078101748,2.93,143.87,143.74,2.01093893]
[1633078101955,0.04176,143.86,143.73,2.01060663]
[1633078102147,2.93,143.85,143.72,2.01073962]
[1633078102346,2.93,143.85,143.73,26.69428421]
[1633078102750,2.93,143.85,143.74,2.01034725]
[1633078102948,2.93,143.85,143.73,24.68384663]
[1633078103347,2.93,143.85,143.73,26.69402789]
[1633078103748,2.2828,143.84,143.73,26.69402789]
[1633078103948,2.93,143.83,143.73,26.69402789]
[1633078104348,2.93,143.83,143.74,74.33097012]
[1633078104749,2.93,143.83,143.75,2.00986419]
[1633078104951,2.93,143.83,143.76,2.00977475]
[1633078105150,2.2828,143.84,143.76,2.00977475]
[1633078105952,2.2828,143.84,143.75,2.00999595]
[1633078107153,2.2828,143.84,143.77,2.00961422]
[1633078107354,2.2828,143.84,143.78,29.77586065]
[1633078107553,2.2828,143.84,143.78,31.78539588]
[1633078108554,2.2828,143.86,143.79,2.00939854]
[1633078109454,2.2828,143.86,143.79,76.30989854]
[1633078110458,2.2828,143.86,143.79,74.3005]
[1633078111554,2.2828,143.86,143.79,76.30998704]
[1633078112155,2.2828,143.86,143.79,74.3005]
[1633078112355,2.2828,143.86,143.78,2.00960259]
[1633078112555,5.2128,143.86,143.75,2.01014099]
[1633078112755,5.2128,143.86,143.76,2.00989659]
[1633078113356,5.2128,143.86,143.77,23.66716835]
[1633078113760,5.2128,143.86,143.78,77.9231]
[1633078114757,5.2128,143.86,143.76,2.01005878]
[1633078114956,5.2128,143.86,143.75,2.01023557]
[1633078115357,5.2128,143.86,143.76,2.01014466]
[1633078115756,5.2128,143.86,143.77,27.07483224]
[1633078116159,5.2128,143.86,143.78,72.9783]
[1633078116958,5.2128,143.86,143.78,74.98831654]
[1633078118657,5.2128,143.86,143.79,2.01019406]
[1633078118859,5.2128,143.86,143.78,74.98850018]
[1633078119259,2.2828,143.86,143.79,2.01015675]
[1633078120259,2.2828,143.88,143.79,2.01015675]
[1633078120660,2.2828,143.88,143.8,2.01006099]
[1633078121057,2.2828,143.88,143.81,2.01011548]
[1633078121259,2.2828,143.88,143.82,25.08622265]
[1633078121658,2.2828,143.88,143.82,27.09609698]
[1633078122458,2.2828,143.88,143.83,2.00974318]
[1633078123457,2.2828,143.88,143.83,75.86514318]
[1633078123658,2.2828,143.9,143.83,75.86514318]
[1633078124260,1.2828,143.9,143.83,75.86514318]
[1633078126363,1.2828,143.9,143.84,2.00926179]
[1633078126564,1.2828,143.9,143.83,75.86478972]
[1633078126764,1.2828,143.9,143.83,73.8554]
[1633078126965,1.2828,143.9,143.83,75.86468888]
[1633078127566,1.2828,143.92,143.83,75.86468888]
[1633078128369,1.2828,143.92,143.84,2.009032]
[1633078129768,1.2828,143.92,143.85,2.00866647]
[1633078130166,1.2828,143.92,143.84,2.00852524]
[1633078130566,1.2828,143.92,143.85,2.00843083]
[1633078130767,1.2828,143.93,143.85,2.00843083]
[1633078132769,1.2828,143.93,143.84,369.0410343]
[1633078132966,1.2828,143.93,143.85,2.00839565]
[1633078133767,1.2828,143.93,143.85,2.93]
[1633078134367,1.2828,143.93,143.85,4.93830775]
[1633078134567,1.2828,143.93,143.85,2.93]
[1633078135168,1.2828,143.96,143.85,2.93]
[1633078136770,1.2828,143.96,143.85,10.5737715]
[1633078141676,1.2828,143.96,143.87,26.75448498]
[1633078142075,1.2828,143.96,143.87,32.38991459]
[1633078143479,1.2828,143.96,143.87,35.31991459]
[1633078143880,1.2828,143.96,143.88,77.948]
[1633078144280,1.2828,143.96,143.88,83.58342961]
[1633078145881,1.2828,143.96,143.88,85.59156538]
[1633078146484,1.2828,143.96,143.88,83.58342961]
[1633078147083,1.2828,143.96,143.88,85.59177813]
[1633078147282,1.2828,143.98,143.88,85.59177813]
[1633078147484,1.2828,143.98,143.89,20.2888]
[1633078147688,1.2828,143.98,143.9,2.00799455]
[1633078147884,1.2828,143.98,143.92,29.6657985]
[1633078148084,1.2828,143.98,143.93,2.93]
[1633078148286,1.2828,143.98,143.93,75.0366]
[1633078148485,0.0001,143.98,143.93,125.46667474]
[1633078148685,0.0001,143.98,143.94,32.5228202]
[1633078148889,0.0001,143.98,143.95,2.93]
[1633078149088,0.0001,143.98,143.95,8.56542961]
[1633078149484,0.0001,143.98,143.95,2.93]
[1633078149883,0.0001,143.98,143.96,5.63542961]
[1633078152286,0.0001,143.98,143.96,8.56542961]
[1633078152690,0.0001,143.98,143.97,89.63542961]
[1633078154886,0.0001,143.98,143.97,84.0]
[1633078155085,0.0001,143.98,143.95,5.63542961]
[1633078155286,0.0001,143.98,143.94,29.81739059]
[1633078155691,0.0001,143.98,143.94,35.4528202]
[1633078156289,0.0001,143.98,143.94,8.56542961]
[1633078157190,0.0001,143.98,143.95,75.5803]
[1633078157489,0.0001,143.98,143.95,81.21572961]
[1633078158289,0.0001,143.98,143.95,5.63542961]
[1633078163694,0.0001,143.98,143.92,2.93]
[1633078163895,0.0001,143.98,143.89,56.94239461]
[1633078163896,0.0001,143.98,143.9,2.93]
[1633078164094,0.0001,143.98,143.92,5.63542961]
[1633078170900,0.0001,143.98,143.91,1.99242584]
[1633078171101,0.0001,143.98,143.9,2.93]
[1633078171301,0.0001,143.98,143.89,5.63542961]
[1633078171703,0.0001,143.98,143.89,34.18829934]
[1633078175212,0.0001,143.98,143.89,36.18912894]
[1633078175609,0.0001,143.98,143.9,1.99703939]
[1633078175810,0.0001,143.98,143.91,1.99056528]
[1633078176009,0.0001,143.98,143.91,7.62599489]
[1633078176215,0.0001,143.98,143.92,5.63542961]
[1633078178013,0.0001,143.98,143.93,2.93]
[1633078178213,0.0001,143.98,143.94,25.80180571]
[1633078178412,0.0001,143.98,143.95,81.3047]
[1633078178812,0.0001,143.98,143.95,115.34418687]
[1633078179013,0.0001,143.98,143.96,5.63542961]
[1633078179219,0.0001,143.98,143.97,101.93]
[1633078179616,0.0001,143.98,143.97,107.56542961]
[1633078184624,0.0001,143.98,143.97,8.56542961]